[Event "*** Titled Tuesday Blitz"]
[Site "Chess.com"]
[Date "2021.04.06"]
[Round "11"]
[White "NikolaGry"]
[Black "StockholmMissile"]
[Result "1-0"]
[WhiteElo "2708"]
[BlackElo "2601"]
[TimeControl "180+1"]
[EndTime "12:08:54 PDT"]
[Termination "NikolaGry won by resignation"]

1. b3 {[%clk 0:03:00.9]} 1... d5 {[%clk 0:02:58.5]} 2. Bb2 {[%clk 0:03:00.8]}
2... Nf6 {[%clk 0:02:58.8]} 3. Nf3 {[%clk 0:03:00.9]} 3... Bg4 {[%clk
0:02:57.8]} 4. e3 {[%clk 0:03:00.3]} 4... Nbd7 {[%clk 0:02:57.1]} 5. h3 {[%clk
0:02:58.8]} 5... Bxf3 {[%clk 0:02:51.9]} 6. Qxf3 {[%clk 0:02:58.6]} 6... g6
{[%clk 0:02:51.2]} 7. c4 {[%clk 0:02:55.6]} 7... dxc4 {[%clk 0:02:44.3]} 8. Bxc4
{[%clk 0:02:53.3]} 8... Bg7 {[%clk 0:02:44.7]} 9. d4 {[%clk 0:02:52]} 9... O-O
{[%clk 0:02:44.2]} 10. O-O {[%clk 0:02:50.3]} 10... c6 {[%clk 0:02:42.5]} 11.
Rd1 {[%clk 0:02:44.9]} 11... Nb6 {[%clk 0:02:42.1]} 12. Bf1 {[%clk 0:02:40.3]}
12... Qd5 {[%clk 0:02:40.6]} 13. Nc3 {[%clk 0:02:34.7]} 13... Qxf3 {[%clk
0:02:40.1]} 14. gxf3 {[%clk 0:02:35]} 14... Nfd5 {[%clk 0:02:38.8]} 15. Ne4
{[%clk 0:02:30.6]} 15... Nd7 {[%clk 0:02:35.8]} 16. Rac1 {[%clk 0:02:22.4]}
16... Rfd8 {[%clk 0:02:28.7]} 17. f4 {[%clk 0:02:21.2]} 17... N5f6 {[%clk
0:02:21.1]} 18. Ng5 {[%clk 0:02:06.2]} 18... Nd5 {[%clk 0:02:09.3]} 19. Bg2
{[%clk 0:02:02.2]} 19... a5 {[%clk 0:02:02.9]} 20. a4 {[%clk 0:01:57.4]} 20...
Nb4 {[%clk 0:01:53]} 21. Ba3 {[%clk 0:01:52.3]} 21... Ra6 {[%clk 0:01:48.8]} 22.
d5 {[%clk 0:01:40.1]} 22... c5 {[%clk 0:01:34.5]} 23. Bf1 {[%clk 0:01:22.3]}
23... Raa8 {[%clk 0:01:24.4]} 24. Ne4 {[%clk 0:01:06.3]} 24... Rac8 {[%clk
0:01:20]} 25. Bb5 {[%clk 0:01:02.4]} 25... b6 {[%clk 0:01:18.3]} 26. Bxb4 {[%clk
0:00:49.4]} 26... axb4 {[%clk 0:01:13]} 27. Nd2 {[%clk 0:00:40.2]} 27... Nf6
{[%clk 0:01:00.3]} 28. Nc4 {[%clk 0:00:38.8]} 28... Rb8 {[%clk 0:00:53.6]} 29.
Bc6 {[%clk 0:00:28.9]} 29... Ne4 {[%clk 0:00:52.2]} 30. f3 {[%clk 0:00:16]}
30... Nd6 {[%clk 0:00:45.6]} 31. Ne5 {[%clk 0:00:12.9]} 31... Bxe5 {[%clk
0:00:16]} 32. fxe5 {[%clk 0:00:12.6]} 32... Nf5 {[%clk 0:00:15.4]} 33. Kf2
{[%clk 0:00:12.8]} 33... f6 {[%clk 0:00:15.3]} 34. f4 {[%clk 0:00:12.2]} 34...
fxe5 {[%clk 0:00:14.9]} 35. fxe5 {[%clk 0:00:12.4]} 35... Rf8 {[%clk 0:00:15.1]}
36. Ke2 {[%clk 0:00:12.7]} 36... Rbd8 {[%clk 0:00:12.1]} 37. Rg1 {[%clk
0:00:10.2]} 37... Nh4 {[%clk 0:00:08.8]} 38. Rg3 {[%clk 0:00:08.4]} 38... Rf5
{[%clk 0:00:06.9]} 39. Rg4 {[%clk 0:00:07.5]} 39... Rh5 {[%clk 0:00:05.1]} 40.
d6 {[%clk 0:00:07.3]} 40... exd6 {[%clk 0:00:04.9]} 41. e6 {[%clk 0:00:07.7]}
41... Nf5 {[%clk 0:00:04.6]} 42. Rf1 {[%clk 0:00:06.8]} 42... Rxh3 {[%clk
0:00:03.4]} 43. Rxf5 {[%clk 0:00:06.2]} 43... Rh2+ {[%clk 0:00:02.6]} 44. Rf2
{[%clk 0:00:06.3]} 44... Rxf2+ {[%clk 0:00:02.5]} 45. Kxf2 {[%clk 0:00:06.6]}
45... Kf8 {[%clk 0:00:03.4]} 46. Rf4+ {[%clk 0:00:06.8]} 46... Ke7 {[%clk
0:00:04.3]} 47. Bd5 {[%clk 0:00:07.1]} 47... Rf8 {[%clk 0:00:03.5]} 48. Rf7+
{[%clk 0:00:06]} 48... Rxf7+ {[%clk 0:00:03.4]} 49. exf7 {[%clk 0:00:06.2]}
49... Kf8 {[%clk 0:00:03]} 50. Kf3 {[%clk 0:00:06.3]} 50... h6 {[%clk
0:00:03.5]} 51. Kf4 {[%clk 0:00:06.3]} 51... Kg7 {[%clk 0:00:04]} 52. e4 {[%clk
0:00:06.3]} 52... Kf8 {[%clk 0:00:04.4]} 53. e5 {[%clk 0:00:06.6]} 53... dxe5+
{[%clk 0:00:04.9]} 54. Kxe5 {[%clk 0:00:06.9]} 54... Ke7 {[%clk 0:00:05.6]} 55.
Kf4 {[%clk 0:00:05.8]} 55... Kf8 {[%clk 0:00:05.8]} 56. Kg4 {[%clk 0:00:06.1]}
56... Kg7 {[%clk 0:00:05.8]} 57. Kf3 {[%clk 0:00:06.3]} 57... Kf8 {[%clk
0:00:06.1]} 58. Kf4 {[%clk 0:00:06.5]} 58... Ke7 {[%clk 0:00:03.9]} 59. Ke5
{[%clk 0:00:06.7]} 59... h5 {[%clk 0:00:02.9]} 60. Kf4 {[%clk 0:00:06.2]} 60...
Kf8 {[%clk 0:00:03.3]} 61. Kg5 {[%clk 0:00:06.4]} 61... Kg7 {[%clk 0:00:03.6]}
62. Bc4 {[%clk 0:00:06.3]} 62... Kf8 {[%clk 0:00:02.4]} 63. Kxg6 {[%clk
0:00:06.3]} 63... h4 {[%clk 0:00:02.7]} 64. Kf6 {[%clk 0:00:06.1]} 64... h3
{[%clk 0:00:02.9]} 65. Bd5 {[%clk 0:00:05.7]} 65... h2 {[%clk 0:00:03.3]} 66.
Ke6 {[%clk 0:00:05.9]} 66... b5 {[%clk 0:00:01.7]} 67. a5 {[%clk 0:00:05.7]}
67... c4 {[%clk 0:00:02.5]} 68. a6 {[%clk 0:00:05.6]} 1-0

[Event "*** Titled Tuesday Blitz"]
[Site "Chess.com"]
[Date "2021.04.06"]
[Round "11"]
[White "Manukyan_Artak"]
[Black "MasterMK73"]
[Result "0-1"]
[WhiteElo "2415"]
[BlackElo "2299"]
[TimeControl "180+1"]
[EndTime "12:08:58 PDT"]
[Termination "MasterMK73 won on time"]

1. e4 {[%clk 0:03:00.9]} 1... c5 {[%clk 0:02:58.6]} 2. Nf3 {[%clk 0:03:00.4]}
2... a6 {[%clk 0:02:57.4]} 3. c3 {[%clk 0:03:00.1]} 3... g6 {[%clk 0:02:55.2]}
4. d4 {[%clk 0:02:59.8]} 4... cxd4 {[%clk 0:02:54.4]} 5. cxd4 {[%clk 0:03:00.7]}
5... d5 {[%clk 0:02:53.3]} 6. exd5 {[%clk 0:03:00.1]} 6... Nf6 {[%clk
0:02:52.5]} 7. Nc3 {[%clk 0:02:58.8]} 7... Bg7 {[%clk 0:02:51.3]} 8. Bc4 {[%clk
0:02:53.4]} 8... b5 {[%clk 0:02:48.4]} 9. Bb3 {[%clk 0:02:53.4]} 9... Bb7 {[%clk
0:02:48.5]} 10. O-O {[%clk 0:02:52.5]} 10... O-O {[%clk 0:02:23.7]} 11. Bg5
{[%clk 0:02:46.1]} 11... Nbd7 {[%clk 0:02:21.9]} 12. Ne5 {[%clk 0:02:41.7]}
12... Nb6 {[%clk 0:02:18.8]} 13. Nc6 {[%clk 0:02:41.5]} 13... Qd7 {[%clk
0:01:44.2]} 14. Re1 {[%clk 0:02:32.4]} 14... Rfe8 {[%clk 0:01:43.9]} 15. Bxf6
{[%clk 0:02:13.9]} 15... Bxf6 {[%clk 0:01:42.9]} 16. Ne4 {[%clk 0:02:14.2]}
16... Bg7 {[%clk 0:01:41.7]} 17. Nc5 {[%clk 0:02:14.3]} 17... Qc7 {[%clk
0:01:34.1]} 18. Qf3 {[%clk 0:02:04.6]} 18... Bf6 {[%clk 0:01:13.6]} 19. Rad1
{[%clk 0:01:10.2]} 19... Rac8 {[%clk 0:01:09.6]} 20. h4 {[%clk 0:01:05.6]} 20...
Bxc6 {[%clk 0:01:04.4]} 21. dxc6 {[%clk 0:01:05.4]} 21... Qxc6 {[%clk
0:01:04.3]} 22. Qxc6 {[%clk 0:01:03.4]} 22... Rxc6 {[%clk 0:00:50.8]} 23. Nxa6
{[%clk 0:01:03.5]} 23... Nc4 {[%clk 0:00:47]} 24. Nb4 {[%clk 0:01:00.2]} 24...
Rd6 {[%clk 0:00:44.1]} 25. Bxc4 {[%clk 0:00:54.2]} 25... bxc4 {[%clk 0:00:43.6]}
26. Re4 {[%clk 0:00:31.5]} 26... Rb8 {[%clk 0:00:36.2]} 27. a3 {[%clk
0:00:31.6]} 27... Rbd8 {[%clk 0:00:36.1]} 28. d5 {[%clk 0:00:30.3]} 28... Bxb2
{[%clk 0:00:31.8]} 29. Rxc4 {[%clk 0:00:26.2]} 29... Bxa3 {[%clk 0:00:30.7]} 30.
Nc6 {[%clk 0:00:26.4]} 30... Rxd5 {[%clk 0:00:25.8]} 31. Nxe7+ {[%clk
0:00:25.9]} 31... Bxe7 {[%clk 0:00:24.9]} 32. Rxd5 {[%clk 0:00:26.2]} 32... Rxd5
{[%clk 0:00:24.6]} 33. g3 {[%clk 0:00:26.9]} 33... Kg7 {[%clk 0:00:23.9]} 34.
Kg2 {[%clk 0:00:26.7]} 34... Bf6 {[%clk 0:00:23.9]} 35. Re4 {[%clk 0:00:24.6]}
35... Rd2 {[%clk 0:00:23.6]} 36. Rf4 {[%clk 0:00:21.3]} 36... Bd4 {[%clk
0:00:22.4]} 37. g4 {[%clk 0:00:20.4]} 37... f6 {[%clk 0:00:19.7]} 38. g5 {[%clk
0:00:19.7]} 38... f5 {[%clk 0:00:18.2]} 39. Kf1 {[%clk 0:00:17.9]} 39... Be5
{[%clk 0:00:14.1]} 40. Rf3 {[%clk 0:00:17.5]} 40... Rd4 {[%clk 0:00:12]} 41. Rh3
{[%clk 0:00:16.5]} 41... Kf7 {[%clk 0:00:11.8]} 42. h5 {[%clk 0:00:15.2]} 42...
gxh5 {[%clk 0:00:10.4]} 43. Rxh5 {[%clk 0:00:16.1]} 43... Kg6 {[%clk 0:00:10.7]}
44. Rh6+ {[%clk 0:00:16.5]} 44... Kxg5 {[%clk 0:00:10.9]} 45. Rxh7 {[%clk
0:00:16.9]} 45... Kf4 {[%clk 0:00:10.9]} 46. Kg2 {[%clk 0:00:16.4]} 46... Kg5
{[%clk 0:00:10.2]} 47. Re7 {[%clk 0:00:12.2]} 47... Bf6 {[%clk 0:00:09.7]} 48.
Re6 {[%clk 0:00:11.7]} 48... Rd2 {[%clk 0:00:09.3]} 49. Kf3 {[%clk 0:00:11.8]}
49... Rd3+ {[%clk 0:00:09.4]} 50. Ke2 {[%clk 0:00:11.8]} 50... Rd5 {[%clk
0:00:09.9]} 51. Kf3 {[%clk 0:00:10.2]} 51... Re5 {[%clk 0:00:09.6]} 52. Ra6
{[%clk 0:00:09.1]} 52... Rb5 {[%clk 0:00:09.5]} 53. Ra8 {[%clk 0:00:08.8]} 53...
Rb3+ {[%clk 0:00:09.4]} 54. Kg2 {[%clk 0:00:08.7]} 54... Kf4 {[%clk 0:00:08.3]}
55. Ra4+ {[%clk 0:00:08.4]} 55... Kg5 {[%clk 0:00:08.2]} 56. Rc4 {[%clk
0:00:07.1]} 56... Be5 {[%clk 0:00:07.9]} 57. Kf1 {[%clk 0:00:05.7]} 57... Rb2
{[%clk 0:00:07.4]} 58. Kg2 {[%clk 0:00:05.8]} 58... Bf4 {[%clk 0:00:05.7]} 59.
Kf3 {[%clk 0:00:02.4]} 59... Bd6 {[%clk 0:00:04.5]} 60. Kg2 {[%clk 0:00:02.6]}
60... Be7 {[%clk 0:00:03.5]} 61. Kf3 {[%clk 0:00:02.6]} 61... Bd8 {[%clk
0:00:03.1]} 0-1

[Event "*** Titled Tuesday Blitz"]
[Site "Chess.com"]
[Date "2021.04.06"]
[Round "11"]
[White "exoticprincess"]
[Black "LiverpooL174"]
[Result "1-0"]
[WhiteElo "2928"]
[BlackElo "2689"]
[TimeControl "180+1"]
[EndTime "12:08:59 PDT"]
[Termination "exoticprincess won by resignation"]

1. e4 {[%clk 0:03:00.9]} 1... c6 {[%clk 0:03:00]} 2. c4 {[%clk 0:03:00.2]} 2...
d5 {[%clk 0:03:00.9]} 3. cxd5 {[%clk 0:03:01.1]} 3... cxd5 {[%clk 0:03:01.8]} 4.
exd5 {[%clk 0:03:02]} 4... Nf6 {[%clk 0:03:02.5]} 5. Qa4+ {[%clk 0:03:01.4]}
5... Nbd7 {[%clk 0:03:03.1]} 6. Nc3 {[%clk 0:03:01]} 6... g6 {[%clk 0:03:03.5]}
7. Nf3 {[%clk 0:03:00.8]} 7... Bg7 {[%clk 0:03:04.1]} 8. Bc4 {[%clk 0:03:01.5]}
8... O-O {[%clk 0:03:04.4]} 9. d3 {[%clk 0:03:02]} 9... a6 {[%clk 0:03:04.6]}
10. Qa3 {[%clk 0:03:02.4]} 10... b6 {[%clk 0:03:05.2]} 11. O-O {[%clk
0:03:02.5]} 11... Bb7 {[%clk 0:03:05.8]} 12. Re1 {[%clk 0:03:03.1]} 12... Re8
{[%clk 0:03:05.8]} 13. Be3 {[%clk 0:03:02.5]} 13... b5 {[%clk 0:02:58.5]} 14.
Bb3 {[%clk 0:02:58.6]} 14... Rc8 {[%clk 0:02:58.6]} 15. Qb4 {[%clk 0:02:57.2]}
15... Nb6 {[%clk 0:02:20]} 16. d6 {[%clk 0:02:52.6]} 16... e6 {[%clk 0:02:16.9]}
17. Ng5 {[%clk 0:02:42.4]} 17... Nbd5 {[%clk 0:02:00.6]} 18. Nxd5 {[%clk
0:02:25.2]} 18... Nxd5 {[%clk 0:01:56.2]} 19. Bxd5 {[%clk 0:02:25.1]} 19... Bxd5
{[%clk 0:01:57.1]} 20. Rac1 {[%clk 0:02:08.1]} 20... Qd7 {[%clk 0:01:40.5]} 21.
a3 {[%clk 0:01:48.4]} 21... a5 {[%clk 0:01:29]} 22. Qxa5 {[%clk 0:01:42.8]}
22... Bxb2 {[%clk 0:01:29.5]} 23. Rc7 {[%clk 0:01:39]} 23... Qxd6 {[%clk
0:01:26.3]} 24. Rxf7 {[%clk 0:01:26.1]} 24... h6 {[%clk 0:01:14.3]} 25. Qa7
{[%clk 0:01:06.3]} 25... hxg5 {[%clk 0:01:06.6]} 26. d4 {[%clk 0:01:06.6]} 26...
e5 {[%clk 0:00:56.5]} 27. Rg7+ {[%clk 0:01:06.8]} 27... Kf8 {[%clk 0:00:56.1]}
28. Rh7 {[%clk 0:01:07.7]} 28... Qf6 {[%clk 0:00:51.5]} 29. Bxg5 {[%clk
0:01:05]} 29... Bxd4 {[%clk 0:00:40.8]} 30. Bxf6 {[%clk 0:00:54.8]} 30... Bxa7
{[%clk 0:00:41]} 31. Rxa7 {[%clk 0:00:55.7]} 31... Re6 {[%clk 0:00:39.7]} 32.
Bg7+ {[%clk 0:00:50.7]} 32... Kg8 {[%clk 0:00:39.7]} 33. h4 {[%clk 0:00:51.6]}
33... Rc2 {[%clk 0:00:35.5]} 34. Rxe5 {[%clk 0:00:47.1]} 34... Rxe5 {[%clk
0:00:32.2]} 35. Bxe5 {[%clk 0:00:48]} 35... Rc4 {[%clk 0:00:29.8]} 36. Rg7+
{[%clk 0:00:44.3]} 36... Kf8 {[%clk 0:00:30.4]} 37. Rxg6 {[%clk 0:00:45.2]}
37... Rxh4 {[%clk 0:00:31]} 38. f3 {[%clk 0:00:42.5]} 38... Rc4 {[%clk
0:00:29.7]} 39. Rb6 {[%clk 0:00:39.6]} 39... Rc1+ {[%clk 0:00:29.1]} 40. Kf2
{[%clk 0:00:39]} 40... Bc4 {[%clk 0:00:29.5]} 41. Bd6+ {[%clk 0:00:36.3]} 41...
Kf7 {[%clk 0:00:29.6]} 42. Bb4 {[%clk 0:00:37.2]} 42... Rc2+ {[%clk 0:00:29.8]}
43. Kg1 {[%clk 0:00:37.1]} 43... Bd3 {[%clk 0:00:27.5]} 44. Rd6 {[%clk
0:00:36.2]} 44... Bc4 {[%clk 0:00:27.9]} 45. Rd2 {[%clk 0:00:28.4]} 45... Rc1+
{[%clk 0:00:25.2]} 46. Kf2 {[%clk 0:00:28.6]} 46... Rf1+ {[%clk 0:00:25.3]} 47.
Kg3 {[%clk 0:00:28.4]} 47... Rg1 {[%clk 0:00:26]} 48. Kf4 {[%clk 0:00:28.2]}
48... Ke6 {[%clk 0:00:25.4]} 49. g4 {[%clk 0:00:28.5]} 49... Rf1 {[%clk
0:00:25.1]} 50. Rd6+ {[%clk 0:00:29]} 50... Kf7 {[%clk 0:00:25.1]} 51. Rd7+
{[%clk 0:00:28.8]} 51... Ke6 {[%clk 0:00:24.6]} 52. Re7+ {[%clk 0:00:29.1]}
52... Kf6 {[%clk 0:00:25.2]} 53. Re3 {[%clk 0:00:27.8]} 53... Bd5 {[%clk
0:00:24.3]} 54. Bc3+ {[%clk 0:00:26.4]} 54... Kg6 {[%clk 0:00:24.1]} 55. Kg3
{[%clk 0:00:26]} 55... Rg1+ {[%clk 0:00:22]} 56. Kf2 {[%clk 0:00:25.8]} 56...
Rb1 {[%clk 0:00:22.6]} 57. Bb4 {[%clk 0:00:25]} 57... Bc4 {[%clk 0:00:22.7]} 58.
Kg3 {[%clk 0:00:22.4]} 58... Rf1 {[%clk 0:00:22]} 59. Re1 {[%clk 0:00:20.7]}
59... Rxe1 {[%clk 0:00:17.1]} 60. Bxe1 {[%clk 0:00:21.6]} 60... Kf6 {[%clk
0:00:18]} 61. Bc3+ {[%clk 0:00:20.8]} 61... Kg6 {[%clk 0:00:17.3]} 62. f4 {[%clk
0:00:21.7]} 62... Bd3 {[%clk 0:00:17.8]} 63. f5+ {[%clk 0:00:20.4]} 63... Bxf5
{[%clk 0:00:17.2]} 64. gxf5+ {[%clk 0:00:20.2]} 64... Kxf5 {[%clk 0:00:18.1]}
65. Bb4 {[%clk 0:00:21.1]} 65... Ke6 {[%clk 0:00:19]} 66. Kf4 {[%clk 0:00:16.3]}
66... Kd5 {[%clk 0:00:19.4]} 67. Kf5 {[%clk 0:00:15.2]} 67... Kc6 {[%clk
0:00:19.9]} 68. Ke6 {[%clk 0:00:14.8]} 68... Kb7 {[%clk 0:00:20.5]} 69. Kd7
{[%clk 0:00:13.6]} 69... Ka8 {[%clk 0:00:21]} 70. Kc8 {[%clk 0:00:11.6]} 70...
Ka7 {[%clk 0:00:21.3]} 71. Bc5+ {[%clk 0:00:12.1]} 71... Ka8 {[%clk 0:00:21.7]}
72. Bd6 {[%clk 0:00:11.3]} 72... Ka7 {[%clk 0:00:21.9]} 73. Kc7 {[%clk
0:00:11.6]} 73... Ka6 {[%clk 0:00:21.7]} 74. Kb8 {[%clk 0:00:10.7]} 74... Kb6
{[%clk 0:00:21.9]} 75. Bb4 {[%clk 0:00:11]} 75... Ka6 {[%clk 0:00:21.6]} 76. Bc5
{[%clk 0:00:11.6]} 76... Ka5 {[%clk 0:00:22]} 77. Kb7 {[%clk 0:00:12.2]} 77...
Ka4 {[%clk 0:00:22.5]} 78. Kb6 {[%clk 0:00:12.1]} 1-0

[Event "*** Titled Tuesday Blitz"]
[Site "Chess.com"]
[Date "2021.04.06"]
[Round "11"]
[White "annamaja"]
[Black "Chuchofrio1"]
[Result "1-0"]
[WhiteElo "2275"]
[BlackElo "2357"]
[TimeControl "180+1"]
[EndTime "12:09:05 PDT"]
[Termination "annamaja won by checkmate"]

1. e4 {[%clk 0:03:00.9]} 1... e5 {[%clk 0:02:57.2]} 2. Nf3 {[%clk 0:02:59.7]}
2... Nc6 {[%clk 0:02:53.7]} 3. Bc4 {[%clk 0:02:59.7]} 3... Nf6 {[%clk 0:02:53]}
4. d3 {[%clk 0:02:59.7]} 4... Be7 {[%clk 0:02:45.5]} 5. O-O {[%clk 0:02:58.3]}
5... O-O {[%clk 0:02:43.7]} 6. c3 {[%clk 0:02:54.4]} 6... d6 {[%clk 0:02:44.1]}
7. h3 {[%clk 0:02:49.6]} 7... Na5 {[%clk 0:02:43.3]} 8. Bb5 {[%clk 0:02:48.4]}
8... a6 {[%clk 0:02:43.6]} 9. Ba4 {[%clk 0:02:48.7]} 9... b5 {[%clk 0:02:44.5]}
10. Bc2 {[%clk 0:02:48.6]} 10... c5 {[%clk 0:02:45]} 11. Nbd2 {[%clk 0:02:47.4]}
11... Qc7 {[%clk 0:02:42.3]} 12. Re1 {[%clk 0:02:46.3]} 12... Rd8 {[%clk
0:02:40.5]} 13. Nf1 {[%clk 0:02:43.3]} 13... Nc6 {[%clk 0:02:39.9]} 14. g4
{[%clk 0:02:40.4]} 14... d5 {[%clk 0:02:20]} 15. exd5 {[%clk 0:02:33.9]} 15...
Nxd5 {[%clk 0:02:20.9]} 16. Ng3 {[%clk 0:02:32.7]} 16... c4 {[%clk 0:02:14.1]}
17. Qe2 {[%clk 0:02:19.3]} 17... cxd3 {[%clk 0:02:04.7]} 18. Bxd3 {[%clk
0:02:15.6]} 18... Bd6 {[%clk 0:01:54.4]} 19. Qe4 {[%clk 0:02:07.1]} 19... Nf6
{[%clk 0:01:54]} 20. Qe2 {[%clk 0:02:03.8]} 20... Re8 {[%clk 0:01:21.1]} 21. g5
{[%clk 0:01:46.2]} 21... Nd5 {[%clk 0:00:55.5]} 22. Qe4 {[%clk 0:01:44.6]} 22...
f5 {[%clk 0:00:44.3]} 23. Nxf5 {[%clk 0:01:30.3]} 23... Bxf5 {[%clk 0:00:42.7]}
24. Qxf5 {[%clk 0:01:28.3]} 24... g6 {[%clk 0:00:41.6]} 25. Qe4 {[%clk 0:01:23]}
25... Nde7 {[%clk 0:00:27.7]} 26. h4 {[%clk 0:01:18.3]} 26... Nf5 {[%clk
0:00:27.6]} 27. h5 {[%clk 0:01:17.4]} 27... Rac8 {[%clk 0:00:20.5]} 28. a4
{[%clk 0:01:09.1]} 28... bxa4 {[%clk 0:00:19]} 29. Bxa6 {[%clk 0:01:06]} 29...
Ra8 {[%clk 0:00:17.2]} 30. Bc4+ {[%clk 0:01:03.3]} 30... Kh8 {[%clk 0:00:16]}
31. hxg6 {[%clk 0:01:02.9]} 31... hxg6 {[%clk 0:00:16.9]} 32. Bd5 {[%clk
0:01:03.2]} 32... Rac8 {[%clk 0:00:15.8]} 33. Kg2 {[%clk 0:00:58.9]} 33... Kg7
{[%clk 0:00:15.5]} 34. Rh1 {[%clk 0:00:56.6]} 34... Rh8 {[%clk 0:00:16]} 35. Bd2
{[%clk 0:00:48.8]} 35... Nce7 {[%clk 0:00:15.5]} 36. Be6 {[%clk 0:00:46.5]}
36... Rcf8 {[%clk 0:00:13.3]} 37. Rxh8 {[%clk 0:00:35.7]} 37... Rxh8 {[%clk
0:00:14.2]} 38. Rxa4 {[%clk 0:00:33.5]} 38... Qb8 {[%clk 0:00:12.3]} 39. b4
{[%clk 0:00:29.4]} 39... Qb5 {[%clk 0:00:11.1]} 40. Ra7 {[%clk 0:00:23.4]} 40...
Kf8 {[%clk 0:00:09.4]} 41. Bc4 {[%clk 0:00:17.4]} 41... Qe8 {[%clk 0:00:08.3]}
42. Ra8 {[%clk 0:00:15.7]} 42... Nc8 {[%clk 0:00:08.7]} 43. Qb7 {[%clk
0:00:12.2]} 43... Nfe7 {[%clk 0:00:07.2]} 44. Be6 {[%clk 0:00:10.6]} 44... Kg7
{[%clk 0:00:06.4]} 45. Bxc8 {[%clk 0:00:09.8]} 45... Qf7 {[%clk 0:00:04.9]} 46.
Bg4 {[%clk 0:00:08.7]} 46... Rxa8 {[%clk 0:00:04.3]} 47. Qxa8 {[%clk 0:00:09.6]}
47... Nd5 {[%clk 0:00:02.9]} 48. Qc6 {[%clk 0:00:08.3]} 48... Nf4+ {[%clk
0:00:03.8]} 49. Bxf4 {[%clk 0:00:08.7]} 49... Qxf4 {[%clk 0:00:04.6]} 50. Qd7+
{[%clk 0:00:07.6]} 50... Kg8 {[%clk 0:00:04.7]} 51. Be6+ {[%clk 0:00:07.4]}
51... Kh8 {[%clk 0:00:04.9]} 52. Qd8+ {[%clk 0:00:06.9]} 52... Kg7 {[%clk
0:00:04.9]} 53. Qxd6 {[%clk 0:00:05.9]} 53... Qf8 {[%clk 0:00:02.3]} 54. Qxf8+
{[%clk 0:00:05.9]} 54... Kxf8 {[%clk 0:00:03.2]} 55. Nxe5 {[%clk 0:00:06.6]}
55... Ke7 {[%clk 0:00:04.1]} 56. Bd5 {[%clk 0:00:07.2]} 56... Kd6 {[%clk
0:00:04.1]} 57. c4 {[%clk 0:00:07.6]} 57... Kxe5 {[%clk 0:00:04.5]} 58. b5
{[%clk 0:00:08.5]} 58... Kd6 {[%clk 0:00:05.3]} 59. b6 {[%clk 0:00:08.3]} 59...
Kd7 {[%clk 0:00:05.7]} 60. b7 {[%clk 0:00:08.9]} 60... Kc7 {[%clk 0:00:06.6]}
61. Kf3 {[%clk 0:00:09.8]} 61... Kb8 {[%clk 0:00:07.4]} 62. Ke4 {[%clk
0:00:10.7]} 62... Kc7 {[%clk 0:00:08.3]} 63. Ke5 {[%clk 0:00:11.6]} 63... Kb8
{[%clk 0:00:09.2]} 64. Kf6 {[%clk 0:00:12.5]} 64... Kc7 {[%clk 0:00:10.1]} 65.
Kxg6 {[%clk 0:00:13.4]} 65... Kb8 {[%clk 0:00:11]} 66. Kf6 {[%clk 0:00:14.3]}
66... Kc7 {[%clk 0:00:11.9]} 67. Ke6 {[%clk 0:00:14.4]} 67... Kb8 {[%clk
0:00:12.3]} 68. g6 {[%clk 0:00:14.2]} 68... Kc7 {[%clk 0:00:12.8]} 69. g7 {[%clk
0:00:14.8]} 69... Kb6 {[%clk 0:00:12.8]} 70. g8=Q {[%clk 0:00:14.7]} 70... Kc5
{[%clk 0:00:13.7]} 71. Qc8+ {[%clk 0:00:14.7]} 71... Kd4 {[%clk 0:00:14]} 72.
b8=Q {[%clk 0:00:13.6]} 72... Kc3 {[%clk 0:00:14.9]} 73. Qe5+ {[%clk 0:00:12.7]}
73... Kd2 {[%clk 0:00:15.8]} 74. Qe3+ {[%clk 0:00:12.4]} 74... Kd1 {[%clk
0:00:15.7]} 75. Bf3+ {[%clk 0:00:12.4]} 75... Kc2 {[%clk 0:00:15.7]} 76. Qe2+
{[%clk 0:00:12.5]} 76... Kc3 {[%clk 0:00:15.8]} 77. Qa6 {[%clk 0:00:11.9]} 77...
Kd4 {[%clk 0:00:15.4]} 78. Qd6+ {[%clk 0:00:12]} 78... Kc3 {[%clk 0:00:15.7]}
79. Qde5+ {[%clk 0:00:11.5]} 79... Kb3 {[%clk 0:00:15.9]} 80. Qb5+ {[%clk
0:00:10.9]} 80... Kc3 {[%clk 0:00:16.1]} 81. Qeb2+ {[%clk 0:00:09.9]} 81... Kd3
{[%clk 0:00:16.3]} 82. Qd5# {[%clk 0:00:10.3]} 1-0